[Event "21st Bangkok CC Open 2024"]
[Site "Bangkok"]
[Date "2024.04.13"]
[Round "1.1"]
[White "Kavin Vijayakumar"]
[Black "Bernadskiy, Vitaliy"]
[Result "0-1"]
[ECO "A23"]
[WhiteElo "1966"]
[BlackElo "2561"]
[Annotator "TA"]
[PlyCount "70"]
[EventDate "2024.04.13"]
[EventType "swiss"]
[EventCountry "THA"]
[SourceTitle "playchess.com"]
[Source "ChessBase"]
[SourceQuality "1"]
[TimeControl "40/5400+30:1800+30"]

{[%evp 10,70,0,-16,8,-7,0,-13,-7,-23,-12,-26,-3,-11,0,-10,10,-7,16,0,0,-13,-6,-22,0,0,0,0,-6,0,0,-265,-264,-355,-342,-952,-941,-29993,-2560,-2569,-2568,-2568,-2568,-2538,-2538,-2450,-2450,-2439,-2439,-2413,-2413,-2413,-2413,-2412,-2405,-2398,-2398,-29986,-29987,-29987,-29988,-29989,-29990]} 1. c4 {[%emt 0:00:03]} e5 {[%emt 0:00:05]} 2. g3 {[%emt 0:00:07]} Nf6 {[%emt 0:00:56]} 3. Bg2 {[%emt 0:00:06]} c6 {[%emt 0:00:08]} 4. Nc3 {[%emt 0:00:09]} d5 {[%emt 0:00:35]} 5. cxd5 {[%emt 0:00:08]} cxd5 {[%emt 0:00:05]} 6. Qb3 {[%emt 0:00:05][%cal Rc3d5]} Bc5 {[%emt 0:13:17]} 7. Nxd5 {[%emt 0:06:23]} O-O {[%emt 0:00:06]} 8. e3 {[%emt 0:08:47]} Nc6 {[%emt 0:00:35] And now ...Be6 would win. The position is equal.} 9. Ne2 {[%emt 0:02:12]} Nxd5 {[%emt 0:03:40]} 10. Qxd5 {[%emt 0:03:08]} Qb6 {[%emt 0:04:57] [#] Strongly threatening ...Nb4.} 11. O-O {[%emt 0:08:37]} Be6 {[%emt 0:01:45]} 12. Qe4 {[%emt 0:00:18]} Qa6 {[%emt 0:01:59]} 13. d4 {[%emt 0:03:15]} Qxe2 {[%emt 0:00:09]} 14. dxc5 {[%emt 0:00:03]} (14. d5 $5) 14... Rfd8 {[%emt 0:00:08] ...Rd1 would now be deadly.} 15. b3 {[%emt 0:10:21]} Bd5 {[%emt 0:02:27]} 16. Qa4 {[%emt 0:03:28]} Bxg2 {[%emt 0:13:49]} 17. Kxg2 {[%emt 0:00:07]} Rd5 {[%emt 0:00:02]} 18. Ba3 {[%emt 0:03:48]} Rad8 {[%emt 0:00:41]} 19. Rfe1 {[%emt 0:02:00]} Qh5 {[%emt 0:00:04]} 20. Qb5 $2 {[%emt 0:00:26][%mdl 8192] Black keeps a firm grip on the game.} (20. Qe4 $11 {and White stays safe.}) 20... e4 $19 {[%emt 0:02:52] White is weak on the light squares} 21. Qe2 {[%emt 0:00:49]} Qf5 {[%emt 0:00:26] ...Rd2 is the strong threat.} 22. Qb5 $2 {[%emt 0:14:42]} (22. Bc1) 22... Ne5 {[%emt 0:01:40] aiming for ...Qf3+.} 23. Qxb7 {[%emt 0:01:06]} Rd2 {[%emt 0:01:29]} (23... Ng4 $142 24. Qxf7+ Kxf7 25. h4 Qxf2+ (25... Qf3+ {gets mated.} 26. Kh3 Rh5 27. Red1 g5 28. Rd7+ Rxd7 29. Rg1 Rxh4#) 26. Kh3 Qh2+ (26... Nxe3 27. Rxe3 Rd2 28. Rae1 Qf5+ 29. g4 Qf2 30. R1e2 Rxe2 31. Rxe2 Rd3+ 32. Re3 Rxe3#) 27. Kxg4 h5+ 28. Kf4 Qf2+ 29. Kxe4 Qf5#) 24. Rf1 {[%emt 0:00:08]} Ng4 {[%emt 0:00:13] ( -> ...Qf3+)} 25. Qc7 {[%emt 0:00:45]} Nxe3+ {[%emt 0:00:45]} 26. Kg1 {[%emt 0:00:32] [#]} Qh3 $1 {[%emt 0:00:40][%csl Ge3][%cal Rh3g2]} 27. Qxd8+ {[%emt 0:01:13]} Rxd8 {[%emt 0:00:04][%csl Ge3][%cal Rh3g2]} 28. fxe3 {[%emt 0:00:08]} Rd2 {[%emt 0:00:05]} 29. Rf2 {[%emt 0:00:08]} Rxf2 {[%emt 0:00:06]} 30. Kxf2 {[%emt 0:00:10]} Qxh2+ {[%emt 0:00:04] KQ-KRB} 31. Ke1 {[%emt 0:00:05]} Qg1+ {[%emt 0:00:05]} 32. Kd2 {[%emt 0:00:03]} Qxa1 {[%emt 0:00:07]} 33. c6 {[%emt 0:00:05]} Qxa2+ {[%emt 0:00:05] Black mates.} 34. Kc3 {[%emt 0:00:07]} Qxa3 {[%emt 0:00:05]} 35. c7 {[%emt 0:00:03]} Qc5+ {[%emt 0:00:05] Weighted Error Value: White=0.78/Black=0.24 (precise) .  Loses game:     	White=1     	---        Mistake:       	White=1     	---        Inaccurate:     	White=2     	---        OK:         	White=2     	Black=6      Best:        	---       	Black=2} 0-1

[Event "21st Bangkok CC Open 2024"]
[Site "Bangkok"]
[Date "2024.04.13"]
[Round "1.2"]
[White "Pranesh M"]
[Black "Lozano, Arvie"]
[Result "1-0"]
[ECO "B12"]
[WhiteElo "2538"]
[BlackElo "1966"]
[Annotator "TA"]
[PlyCount "63"]
[EventDate "2024.04.13"]
[EventType "swiss"]
[EventCountry "THA"]
[SourceTitle "playchess.com"]
[Source "ChessBase"]
[SourceQuality "1"]
[TimeControl "40/5400+30:1800+30"]

{[%evp 9,63,44,29,31,64,72,79,82,81,67,102,104,137,116,118,129,137,127,160,166,166,165,159,131,137,125,130,141,123,141,194,164,171,179,170,151,310,214,272,0,295,192,341,372,483,489,398,0,347,379,360,361,812,807,1328,1312]} 1. e4 {[%emt 0:01:48][%cal Be2e4,Be4e5][%mdl 32]} c6 {[%emt 1:31:00][%cal Bc7c6,Bc6c5][%mdl 32]} 2. d4 {[%emt 1:29:42]} d5 {[%emt 0:00:30]} 3. e5 {[%emt 0:00:30]} e6 {[%emt 0:00:30]} 4. c3 {[%emt 0:00:30]} c5 {[%emt 0:00:30]} 5. Nf3 {[%emt 0:00:30]} Nc6 {[%emt 0:00:30]} 6. Bd3 {[%emt 0:00:30]} Qb6 {[%emt 0:00:30][%cal Rc5d4]} 7. O-O {[%emt 0:00:30]} Bd7 {[%emt 0:00:30]} 8. dxc5 $1 {[%emt 0:00:30] White is better.} Bxc5 {[%emt 0:00:30]} 9. b4 {[%emt 0:00:30][%cal Bb2b4,Bb4b5][%mdl 32]} Be7 {[%emt 0:00:30]} 10. Re1 {[%emt 0:00:30]} f6 {[%emt 0:00:30] [#]} 11. Be3 $1 {[%emt 0:00:30]} Qc7 {[%emt 0:00:30]} 12. Bf4 {[%emt 0:00:30] b5 is the strong threat.} Qb6 {[%emt 0:00:30]} 13. b5 {[%emt 0:00:30]} Na5 {[%emt 0:00:30]} 14. Nd4 {[%emt 0:00:30]} f5 {[%emt 0:00:30]} 15. Nd2 {[%emt 0:00:30][%cal Od3f5]} Bc5 {[%emt 0:00:30]} 16. Qh5+ {[%emt 0:00:30]} g6 {[%emt 0:00:30]} 17. Qh4 {[%emt 0:00:30] White is much more active.} Bxd4 {[%emt 0:00:30]} 18. cxd4 {[%emt 0:00:30]} Qxd4 {[%emt 0:00:30]} 19. Bf1 {[%emt 0:00:30]} Rc8 {[%emt 0:00:30]} (19... h6 $16 20. Rac1 (20. Nf3 Qa4 $18) 20... Qb4) 20. a4 {[%emt 0:00:30][%mdl 1024] White has strong compensation.} b6 {[%emt 0:00:30]} 21. Nf3 {[%emt 0:00:30]} Qb4 {[%emt 0:00:30]} 22. Reb1 $36 {[%emt 0:00:30][%mdl 2048] White is really pushing.} Qc3 {[%emt 0:00:30]} (22... Qf8 $16 23. Bd2 Nc4) 23. Bd2 {[%emt 0:00:30]} Qc2 {[%emt 0:00:30]} 24. Bf4 {[%emt 0:00:30] Black must now prevent Rc1.} Qc3 {[%emt 0:00:30]} 25. Bg5 {[%emt 0:00:30] Hoping for Rc1.} Nc4 {[%emt 0:00:30]} (25... Qc2 {was necessary.} 26. Qg3 Nb7) 26. Rc1 $18 {[%emt 0:00:30]} Qb2 {[%emt 0:00:30]} 27. Rab1 {[%emt 0:00:30]} Qa2 {[%emt 0:00:30]} 28. Ra1 {[%emt 0:00:30]} Qb2 {[%emt 0:00:30]} 29. Bxc4 {[%emt 0:00:30]} Rxc4 {[%emt 0:00:30]} 30. Rxc4 {[%emt 0:00:30]} dxc4 $2 {[%emt 0:00:30] [#]} (30... Qxa1+ 31. Rc1 Qb2) 31. Rd1 $1 {[%emt 0:00:30]} Qb3 {[%emt 0:00:30]} 32. Qd4 {[%emt 0:00:30] Weighted Error Value: White=0.44/Black=0.33.  Mistake:       	---       	Black=4      Inaccurate:     	White=2     	Black=4      OK:         	White=12    	Black=7      Best:        	---       	Black=1      Strong:       	White=3     	---} 1-0

[Event "21st Bangkok CC Open 2024"]
[Site "Bangkok"]
[Date "2024.04.13"]
[Round "1.3"]
[White "Shen, Zhiyuan"]
[Black "Mitrabha, Guha"]
[Result "1/2-1/2"]
[ECO "B13"]
[WhiteElo "1963"]
[BlackElo "2537"]
[Annotator "TA"]
[PlyCount "103"]
[EventDate "2024.04.13"]
[EventType "swiss"]
[EventCountry "THA"]
[SourceTitle "playchess.com"]
[Source "ChessBase"]
[SourceQuality "1"]
[TimeControl "40/5400+30:1800+30"]

{[%evp 19,103,29,26,26,29,29,30,30,34,24,25,14,22,15,25,18,18,0,0,0,0,0,0,0,0,-14,0,0,17,30,29,48,26,18,20,16,47,0,0,-30,-45,-27,-18,-27,0,0,0,0,0,0,0,-29,-34,-30,-35,-45,0,0,0,0,29989,0,0,0,0,0,16,16,29,0,0,0,0,0,0,0,0,0,0,0,0,0,0,0,0,0]} 1. e4 {[%emt 0:00:06]} c6 {[%emt 0:00:06]} 2. d4 {[%emt 0:00:10]} d5 {[%emt 0:00:06]} 3. exd5 {[%emt 0:00:10]} cxd5 {[%emt 0:00:05]} 4. Bd3 {[%emt 0:00:14]} Nc6 {[%emt 0:00:08]} 5. c3 {[%emt 0:00:16]} Nf6 {[%emt 0:00:02]} 6. Bf4 {[%emt 0:00:50]} Bg4 {[%emt 0:00:06]} 7. Qb3 {[%emt 0:00:37]} Qd7 {[%emt 0:00:02]} 8. Nd2 {[%emt 0:00:45]} e6 {[%emt 0:00:02]} 9. Ngf3 {[%emt 0:00:20]} Bd6 {[%emt 0:00:10]} 10. Bxd6 {[%emt 0:00:55]} Qxd6 {[%emt 0:00:34]} 11. O-O {[%emt 0:00:35]} O-O {[%emt 0:00:08]} 12. Rfe1 {[%emt 0:00:56]} Qc7 {[%emt 0:00:16]} 13. Qc2 {[%emt 0:04:39] White has an edge.} Rfc8 {[%emt 0:02:06][%cal Oc6b4]} 14. Rac1 {[%emt 0:02:17]} Bh5 {[%emt 0:02:06]} 15. Ne5 {[%emt 0:03:22]} Rab8 {[%emt 0:01:34]} 16. h3 {[%emt 0:05:09]} Bg6 {[%emt 0:03:31]} 17. Bxg6 {[%emt 0:08:18]} hxg6 {[%emt 0:00:03]} 18. Qd3 {[%emt 0:02:42]} Nxe5 {[%emt 0:01:13]} 19. Rxe5 {[%emt 0:06:26]} a5 {[%emt 0:00:51]} 20. Ree1 {[%emt 0:19:06]} b5 {[%emt 0:00:20]} 21. Nf3 {[%emt 0:06:30]} b4 {[%emt 0:00:54]} 22. Ne5 {[%emt 0:02:00]} bxc3 {[%emt 0:04:00]} 23. Rxc3 {[%emt 0:02:33]} Qb6 {[%emt 0:01:34]} 24. Rec1 {[%emt 0:05:33]} Rxc3 {[%emt 0:02:08]} 25. Qxc3 {[%emt 0:01:07]} Rf8 {[%emt 0:11:47]} (25... Qxb2 26. Qxb2 Rxb2 27. Rc8+ Kh7 28. Nxf7) 26. b3 {[%emt 0:08:34]} Ne4 {[%emt 0:01:04]} 27. Qe3 {[%emt 0:04:57] [#] Hoping for Nd7.} Qb4 {[%emt 0:02:02]} 28. Rc7 {[%emt 0:02:58]} (28. Nc6 $14 Qb6 29. Qf4) 28... a4 $11 {[%emt 0:03:48]} 29. Qf4 {[%emt 0:05:02][%cal Rc7f7]} axb3 {[%emt 0:06:52]} (29... g5 $5 30. Qe3 $8 axb3 31. axb3 Qb6 $11) 30. axb3 {[%emt 0:02:33][%cal Rc7f7]} g5 {[%emt 0:02:34]} 31. Qe3 {[%emt 0:01:16] Against Qe1+} Qa5 {[%emt 0:01:51]} 32. Qc1 {[%emt 0:01:40]} Qa2 {[%emt 0:04:11]} 33. Qe3 {[%emt 0:01:49]} f6 {[%emt 0:10:03]} 34. Nd7 {[%emt 0:01:49]} Ra8 {[%emt 0:09:57]} 35. Nc5 {[%emt 0:01:06] Active counter play!} Qb1+ {[%emt 0:00:02]} 36. Kh2 {[%emt 0:00:06]} Ra1 {[%emt 0:00:03][%csl Ga1][%cal Rb1h1] [#]} 37. Nxe4 {[%emt 0:00:36]} dxe4 $15 {[%emt 0:00:02][%mdl 4096] Endgame. KQR-KQR} (37... Qxe4 {simplifies} 38. Qxe4 dxe4 39. b4 Rb1) 38. Rc8+ {[%emt 0:00:36]} Kh7 {[%emt 0:00:09]} 39. Qe2 $1 {[%emt 0:00:35][%cal Re2h5]} Qg1+ {[%emt 0:09:17]} (39... Qxb3 40. Qh5#) 40. Kg3 {[%emt 0:00:08][%cal Re2h5]} Qd1 $1 {[%emt 0:00:48]} 41. Qxe4+ {[%emt 0:31:06]} f5 {[%emt 0:30:02]} 42. Qf3 {[%emt 0:00:00]} (42. Qxe6 $2 {gets mated.} f4+ 43. Kh2 Qh1#) 42... f4+ {[%emt 0:00:00]} 43. Kg4 {[%emt 0:00:00]} Qxd4 {[%emt 0:00:00]} 44. Rc4 {[%emt 0:00:00]} (44. Kxg5 {is a self mate.} Qf6+ 45. Kg4 Qf5+ 46. Kh4 Ra5 (46... g5+ 47. Kh5 g4+ 48. Kh4 gxf3 49. g4 fxg3 50. fxg3 Qf6+ 51. Kh5 Ra5+ 52. Rc5 Rxc5+ 53. Kg4 Rg5+ 54. Kh4 Qh6#) (46... g5+ 47. Kh5 g4+ 48. Kh4 gxf3 49. g4 fxg3 50. fxg3 Qf6+ 51. Kg4 Qd4+ 52. Kxf3 Rf1+ 53. Ke2 Rf2+ 54. Ke1 Qd2#)) (44. Qc3 {simplifies} Qxc3 45. Rxc3 Kh6 46. g3) 44... Qf6 {[%emt 0:00:00] ( -> ...Qf5+). The position is equal.} 45. Qe4+ {[%emt 0:00:00]} g6 {[%emt 0:00:00]} 46. Rc6 {[%emt 0:00:00]} Re1 {[%emt 0:10:44]} 47. Qxe1 {[%emt 0:00:00][%cal Oe1e4]} Qf5+ {[%emt 0:00:02]} 48. Kf3 {[%emt 0:00:00]} Qd5+ {[%emt 0:02:51]} 49. Qe4 {[%emt 0:00:00] Qxd5 would kill now.} ({Don't do} 49. Ke2 $6 Qxc6 50. Qd1 e5 $14) 49... Qd1+ {[%emt 0:00:03]} 50. Qe2 {[%emt 0:00:00]} Qd5+ {[%emt 0:00:03]} 51. Qe4 {[%emt 0:00:00]} Qd1+ {[%emt 0:00:08]} 52. Qe2 {[%emt 0:00:00] Weighted Error Value: White=0.06 (flawless) /Black=0.23 (precise) .  Missed win:     	White=1     	---        Mistake:       	White=1     	---        Inaccurate:     	White=3     	Black=3      OK:         	White=9     	Black=20     Best:        	White=4     	Black=3      Strong:       	White=1     	Black=1} 1/2-1/2

[Event "21st Bangkok CC Open 2024"]
[Site "Bangkok"]
[Date "2024.04.13"]
[Round "1.4"]
[White "Peng, Xiongjian"]
[Black "Shen, Ree Herng"]
[Result "1-0"]
[ECO "E66"]
[WhiteElo "2521"]
[BlackElo "1956"]
[Annotator "TA"]
[PlyCount "95"]
[EventDate "2024.04.13"]
[EventType "swiss"]
[EventCountry "THA"]
[SourceTitle "playchess.com"]
[Source "ChessBase"]
[SourceQuality "1"]
[TimeControl "40/5400+30:1800+30"]

{[%evp 20,95,8,-14,0,0,0,0,-4,0,-14,-19,-12,-27,0,-5,-6,-22,-25,-19,-18,-53,-31,-41,0,0,0,12,54,43,47,18,17,14,288,285,266,253,254,271,257,247,250,246,250,259,277,284,345,345,339,337,341,289,282,275,261,263,491,464,552,545,677,675,1121,1009,934,855,2528,2190,4837,4638,4837,4833,29961,29962,29960,8502]} 1. Nf3 {[%emt 0:00:14]} Nf6 {[%emt 0:00:11]} 2. c4 {[%emt 0:00:14]} g6 {[%emt 0:00:15]} 3. Nc3 {[%emt 0:00:27]} Bg7 {[%emt 0:00:25]} 4. d4 {[%emt 0:01:03][%cal Bd2d4,Bd4d5][%mdl 32]} d6 {[%emt 0:00:21]} 5. g3 {[%emt 0:00:32]} O-O {[%emt 0:00:27]} 6. Bg2 {[%emt 0:00:04]} c5 {[%emt 0:00:51]} 7. O-O {[%emt 0:00:08]} Nc6 {[%emt 0:01:00]} 8. d5 {[%emt 0:00:32]} Na5 {[%emt 0:00:51]} 9. Nd2 {[%emt 0:00:08]} a6 {[%emt 0:02:08]} 10. Rb1 {[%emt 0:00:50]} Rb8 {[%emt 0:01:27]} 11. a3 {[%emt 0:05:05]} b5 {[%emt 0:06:13]} 12. cxb5 {[%emt 0:00:13]} axb5 {[%emt 0:00:04]} 13. b4 {[%emt 0:00:04]} cxb4 {[%emt 0:03:11] The position is equal.} 14. axb4 {[%emt 0:04:05]} Nc4 {[%emt 0:02:05]} 15. Qb3 {[%emt 0:00:14]} Nxd2 {[%emt 0:04:25]} 16. Bxd2 {[%emt 0:01:03]} Bd7 {[%emt 0:04:25]} 17. Rfc1 {[%emt 0:00:28]} Ng4 {[%emt 0:05:38]} 18. Nd1 {[%emt 0:00:23][%cal Bc3d1,Bd1b2,Bb2d3,Bd3c5][%mdl 32]} Qb6 {[%emt 0:03:43]} 19. h3 {[%emt 0:02:32]} Ne5 {[%emt 0:01:09]} 20. Be3 {[%emt 0:12:15]} Qb7 {[%emt 0:01:15]} 21. Nb2 {[%emt 0:02:58] Wards off Nc4} f5 {[%emt 0:13:29]} ({Black should play} 21... Ra8 $15) 22. f4 $36 {[%emt 0:04:10][%mdl 2048] White has the initiative.} Nf7 {[%emt 0:00:35]} 23. Ra1 {[%emt 0:00:35]} Ra8 {[%emt 0:02:21] Dodges Ra7} 24. Ra5 {[%emt 0:00:25]} Rfc8 {[%emt 0:03:54]} 25. Rxc8+ {[%emt 0:07:09]} Qxc8 {[%emt 0:01:32]} 26. Nd3 {[%emt 0:00:33]} Rxa5 $4 {[%emt 0:11:50][%mdl 8192] This move loses the game for Black.} (26... Bf6 $11) 27. bxa5 $18 {[%emt 0:00:06]} Qc3 {[%emt 0:02:02]} 28. Qxc3 {[%emt 0:07:21]} Bxc3 {[%emt 0:00:07]} 29. a6 {[%emt 0:00:15]} Bc8 {[%emt 0:01:02] [#]} 30. Nc5 {[%emt 0:01:02][%mdl 512]} Bxa6 {[%emt 0:11:06]} (30... dxc5 $2 {is the wrong capture.} 31. a7 Nd6 32. a8=Q $18 (32. a8=B $2 c4 $19)) 31. Nxa6 {[%emt 0:00:19]} b4 {[%emt 0:02:13][%cal Bb5b4,Bb4b3][%mdl 32]} 32. Nc7 {[%emt 0:00:06]} b3 {[%emt 0:00:41] And now ...b2 would win.} 33. Nb5 {[%emt 0:00:05]} Bf6 {[%emt 0:03:38]} 34. Kf1 {[%emt 0:03:41]} Nd8 {[%emt 0:00:46]} 35. Ke1 {[%emt 0:02:03]} Nb7 {[%emt 0:00:13]} 36. Bb6 {[%emt 0:01:44]} Nc5 {[%emt 0:01:30]} 37. Bxc5 {[%emt 0:00:12]} dxc5 {[%emt 0:00:08]} 38. d6 {[%emt 0:00:48]} e6 $2 {[%emt 0:02:52]} (38... Kg7 39. Bd5 b2) 39. Kd2 {[%emt 0:00:32]} Kf7 {[%emt 0:03:18]} 40. e3 {[%emt 0:01:34]} g5 {[%emt 0:01:34]} 41. Bf1 {[%emt 0:31:17]} gxf4 {[%emt 0:30:36]} 42. gxf4 {[%emt 0:00:17]} b2 {[%emt 0:01:04]} 43. Kc2 {[%emt 0:00:05] [#] Black must now prevent Bc4.} e5 {[%emt 0:00:08]} 44. Bc4+ {[%emt 0:00:13]} Ke8 {[%emt 0:00:18]} 45. Be6 {[%emt 0:00:13]} (45. Kxb2 exf4+ 46. Kc2 fxe3 $18) 45... exf4 {[%emt 0:00:25]} 46. exf4 {[%emt 0:00:04][%cal Ob5a7] White wants to mate with Na7!} Bg7 {[%emt 0:00:42]} 47. Na7 {[%emt 0:01:14]} Bf6 {[%emt 0:00:22]} 48. Nc6 {[%emt 0:00:06] Weighted Error Value: White=0.07 (flawless) /Black=0.65.  Loses game:     	---       	Black=1      Mistake:       	---       	Black=2      Inaccurate:     	White=2     	Black=3      OK:         	White=13    	Black=12     Best:        	White=2     	Black=1} 1-0

[Event "21st Bangkok CC Open 2024"]
[Site "Bangkok"]
[Date "2024.04.13"]
[Round "1.5"]
[White "Siddharth, Gopakumar"]
[Black "Makhnev, Denis"]
[Result "0-1"]
[ECO "B06"]
[WhiteElo "1956"]
[BlackElo "2516"]
[Annotator "TA"]
[PlyCount "56"]
[EventDate "2024.04.13"]
[EventType "swiss"]
[EventCountry "THA"]
[SourceTitle "playchess.com"]
[Source "ChessBase"]
[SourceQuality "1"]
[TimeControl "40/5400+30:1800+30"]

{[%evp 9,56,36,41,0,13,-29,10,-35,-40,-66,-64,-82,-36,-52,-45,-47,-43,-47,-39,-54,-37,-70,-37,-29,-33,-58,-53,-70,-79,-85,-87,-393,-378,-430,-445,-465,-470,-471,-445,-669,-705,-680,-691,-665,-648,-1398,-1386,-1254,-770]} 1. e4 {[%emt 0:00:05]} g6 {[%emt 0:00:16]} 2. d4 {[%emt 0:00:16]} Bg7 {[%emt 0:00:09]} 3. Nc3 {[%emt 0:00:42]} d6 {[%emt 0:00:08]} 4. f4 {[%emt 0:02:03]} a6 {[%emt 0:01:08]} 5. Nf3 {[%emt 0:00:37]} b5 {[%emt 0:00:27]} 6. a3 {[%emt 0:00:16]} Nd7 {[%emt 0:01:31]} 7. Be3 {[%emt 0:03:45]} Bb7 $1 {[%emt 0:00:12]} 8. d5 {[%emt 0:06:25] The position is equal.} Ngf6 {[%emt 0:06:51]} 9. Bd4 {[%emt 0:09:13]} O-O {[%emt 0:00:53]} 10. Bd3 {[%emt 0:02:49]} c5 {[%emt 0:05:43]} (10... e6 $17 {[%cal Re6d5]} 11. O-O exd5 12. exd5 Nxd5 13. Bxg7 Kxg7 14. Nxd5 Bxd5) 11. dxc6 $15 {[%emt 0:00:25]} Bxc6 {[%emt 0:00:07][%cal Oe7e5]} 12. O-O {[%emt 0:00:09]} Qc7 {[%emt 0:06:34]} 13. Qe2 {[%emt 0:06:34]} e5 {[%emt 0:02:56]} 14. fxe5 {[%emt 0:06:00]} dxe5 {[%emt 0:00:09]} 15. Bf2 {[%emt 0:00:53]} Nh5 {[%emt 0:01:33]} 16. g3 {[%emt 0:01:17]} Nhf6 {[%emt 0:00:18]} 17. h3 {[%emt 0:03:25]} Bb7 {[%emt 0:02:13]} 18. a4 {[%emt 0:09:02]} b4 {[%emt 0:01:39]} 19. Na2 {[%emt 0:00:05]} Nc5 {[%emt 0:01:19]} 20. Nxb4 $2 {[%emt 0:01:15][%mdl 8192] [#] Now White is beyond hope.} (20. Bxc5 $17 Qxc5+ 21. Kh2) 20... Nfxe4 {[%emt 0:01:19]} 21. Bxe4 {[%emt 0:04:17]} Nxe4 {[%emt 0:00:17] Black is clearly winning.} ({Weaker is} 21... Bxe4 22. Ra3 $17) 22. c3 {[%emt 0:01:26]} a5 {[%emt 0:00:53]} 23. Nc2 {[%emt 0:00:20]} f5 {[%emt 0:00:43] aiming for ...Ba6.} 24. Rfd1 {[%emt 0:01:50]} (24. Ne3 $142) 24... f4 $19 {[%emt 0:01:15]} 25. g4 {[%emt 0:01:18]} Nxf2 {[%emt 0:00:15]} 26. Qxf2 {[%emt 0:00:27]} e4 {[%emt 0:00:09]} 27. Nfd4 {[%emt 0:00:11]} e3 {[%emt 0:00:46]} 28. Qh2 {[%emt 0:00:16]} Qb6 {[%emt 0:00:25] Weighted Error Value: White=0.67/Black=0.07 (flawless) .  Loses game:     	White=1     	---        Mistake:       	White=1     	Black=1      Inaccurate:     	White=4     	Black=1      OK:         	White=5     	Black=7      Strong:       	---       	Black=1} 0-1

[Event "21st Bangkok CC Open 2024"]
[Site "Bangkok"]
[Date "2024.04.13"]
[Round "1.6"]
[White "Samant Aditya S"]
[Black "Tobor, Mick"]
[Result "1-0"]
[ECO "B90"]
[WhiteElo "2512"]
[BlackElo "1952"]
[Annotator "RC"]
[PlyCount "53"]
[EventDate "2024.04.13"]
[EventType "swiss"]
[EventCountry "THA"]
[SourceTitle "playchess.com"]
[Source "ChessBase"]
[SourceQuality "1"]
[TimeControl "40/5400+30:1800+30"]

1. e4 {[%emt 0:00:04]} c5 {[%emt 0:00:09]} 2. Nf3 {[%emt 0:00:05]} d6 {[%emt 0:00:07]} 3. d4 {[%emt 0:00:04]} cxd4 {[%emt 0:00:09]} 4. Nxd4 {[%emt 0:00:05]} Nf6 {[%emt 0:00:13]} 5. Nc3 {[%emt 0:00:06]} a6 {[%emt 0:00:13]} 6. Be3 {[%emt 0:00:24]} e5 {[%emt 0:01:30]} 7. Nf3 {[%emt 0:00:23]} Be7 {[%emt 0:00:36]} 8. Bc4 {[%emt 0:00:48]} O-O {[%emt 0:01:14]} 9. O-O {[%emt 0:00:08]} Qc7 {[%emt 0:07:59]} 10. Bb3 {[%emt 0:01:50]} Nbd7 {[%emt 0:02:15]} 11. Bg5 {[%emt 0:15:53]} h6 {[%emt 0:11:51]} 12. Bxf6 {[%emt 0:02:26]} Nxf6 {[%emt 0:00:20]} 13. Nh4 {[%emt 0:01:08]} Kh8 {[%emt 0:26:55]} 14. Qd3 {[%emt 0:05:45]} g5 {[%emt 0:09:50]} 15. Nf3 {[%emt 0:02:18]} Be6 {[%emt 0:01:05]} 16. Nd2 {[%emt 0:04:39]} Bxb3 {[%emt 0:04:01]} 17. axb3 {[%emt 0:05:10]} b5 {[%emt 0:02:59]} 18. Rfd1 {[%emt 0:02:35]} Kg7 {[%emt 0:02:55]} 19. Nf1 {[%emt 0:01:07]} b4 {[%emt 0:03:46]} 20. Nd5 {[%emt 0:04:00]} Nxd5 {[%emt 0:00:10]} 21. Qxd5 {[%emt 0:00:02]} f5 {[%emt 0:05:52]} 22. exf5 {[%emt 0:04:54]} Qxc2 {[%emt 0:01:11]} 23. Qe6 {[%emt 0:02:16]} Qxf5 {[%emt 0:04:32]} 24. Qxe7+ {[%emt 0:00:41]} Rf7 {[%emt 0:00:07]} 25. Qxd6 {[%emt 0:00:12]} Qxf2+ {[%emt 0:00:24]} 26. Kh1 {[%emt 0:00:06]} Re8 {[%emt 0:05:09]} 27. Ng3 {[%emt 0:00:15]} 1-0